Cogmind - Beta 16 @@@ ROGUE MODE // 2025.12.02 @ 08:12:51 Player: Zonalar Result: Destroyed by S-10 Pest with Light Assault Rifle Performance ------------- Evolutions (1) 500 Regions Visited (2) 400 Robots Destroyed (45) 225 Value Destroyed (1101) 1101 Prototype IDs (4) 80 Alien Tech Used (0) 0 Bonus (0) 0 TOTAL SCORE: 2306 Bonus ------- None Cogmind --------- Core Integrity 0/400 Matter 300/300 Energy 100/100 System Corruption 0% Temperature Cool (0) Movement Flying (29) Location -9/Materials Parts ------- > --- POWER (1) -------- (None) > --- PROPULSION (3) --- VTOL Module VTOL Module VTOL Module > --- UTILITY (3) ------ Heat Sink Hacking Suite > --- WEAPON (2) ------- Improved Datajack Maul > --- INVENTORY (5) ---- Flight Unit Flight Unit Heavy Assault Rifle Improved Light Cannon Hammer Peak State ------------ > --- POWER ------------ Light Ion Engine > --- PROPULSION ------- VTOL Module VTOL Module VTOL Module > --- UTILITY ---------- Heat Sink Hacking Suite > --- WEAPON ----------- Improved Datajack Maul > --- INVENTORY -------- Flight Unit Flight Unit Heavy Assault Rifle Improved Light Cannon Hammer [Rating: 16] Favorites ----------- Power Light Nuclear Core Engine Light Ion Engine Power Core Light Nuclear Core Propulsion Compact Wheel Leg Aluminum Leg Wheel Compact Wheel Hover Unit Hover Unit Flight Unit VTOL Module Utility Seismic Detector Device Seismic Detector Storage Medium Storage Unit Hackware Hacking Suite Protection Propulsion Shielding Weapon Assault Rifle Energy Gun Medium Laser Energy Cannon Beam Cannon Ballistic Gun Assault Rifle Ballistic Cannon Light Cannon Launcher Rocket Launcher Special Weapon Mining Laser Impact Weapon Maul Special Melee Weapon Improved Datajack Build | -11 -10 -9 ------- Run | Yrd Mat Mat Slots Evolved 2 | . . 2 Power . | . . . Propulsion 1 | . . 1 Utility 1 | . . 1 Weapon . | . . . Parts Attached 45 | 9 13 23 Power 6 | 1 2 3 Engine 5 | 1 1 3 Core 1 | . 1 . Reactor . | . . . Propulsion 14 | 3 4 7 Treads . | . . . Leg 3 | . 3 . Wheel 4 | 3 1 . Hover 4 | . . 4 Flight 3 | . . 3 Utility 11 | 2 2 7 Device 5 | 1 . 4 Storage 4 | 1 2 1 Processor . | . . . Hackware 1 | . . 1 Protection 1 | . . 1 Artifact . | . . . Weapon 14 | 3 5 6 Energy Gun 2 | 1 1 . Energy Cannon 2 | . 1 1 Ballistic Gun 2 | 2 . . Ballistic Cannon 1 | . . 1 Launcher 1 | . . 1 Special Weapon 2 | . 2 . Impact Weapon 2 | . . 2 Slashing Weapon . | . . . Piercing Weapon . | . . . Special Melee Weapon 2 | . 1 1 Unidentified Prototypes 1 | . . 1 Parts Lost 14 | . 4 10 Power 3 | . . 3 Propulsion 7 | . 3 4 Utility 2 | . . 2 Weapon 2 | . 1 1 Highest Loss Streak 7 | . 2 7 To Critical Strikes . | . . . Average Backups 7 | 4 9 4 Power 1 | . 1 . Propulsion 1 | 2 2 . Utility . | . . . Weapon 2 | 1 3 1 Tool/Special . | . . . Unused Backups 14 | . 6 8 Power 2 | . 2 . Propulsion 5 | . 3 2 Utility 2 | . 1 1 Weapon 3 | . . 3 Tool/Special 2 | . . 2 Average Slot Usage (%) 94 | . 98 85 Engine 5 | . 3 9 Core 7 | . 10 . Leg 6 | . 8 2 Wheel 12 | . 18 . Hover 5 | . . 19 Flight 1 | . . 5 Device 14 | . 14 14 Storage 10 | . 14 1 Hackware 3 | . . 10 Energy Cannon 7 | . 10 1 Ballistic Gun 10 | . 13 3 Special Weapon 1 | . 2 . Impact Weapon 3 | . . 11 Peak Build Rating 16 | 7 10 16 Average Rating 9 | 5 9 11 On Entrance 5 | . 7 8 Avg Prop Armor Cover (%) 5 | . . 5 Naked Turns . | . . . Heaviest Build 22 | 12 21 22 Greatest Support 32 | 32 32 21 Greatest Overweight (x) 2 | . 2 1 Average Overweight (x) . | . . . Largest Inventory Capacity 10 | 8 10 10 Average Capacity 8 | 7 9 5 Most Carried 10 | 7 10 10 Average Carried 7 | 4 9 4 Final Capacity 10 | 8 10 5 Final Carried 10 | 7 10 5 Class Distribution -------------------- 56% | Scavenger-Mutant 38% | Mutant 4% | Sprinter Dominant Class ---------------- Scavenger-Mutant | -10/Materials Scavenger-Mutant | -9/Materials Resources | -11 -10 -9 ----------- Run | Yrd Mat Mat Matter Collected 1089 | 260 519 310 Remotely . | . . . Salvage Created 1410 | 70 890 450 Parts 71 | 7 41 23 Haulers Intercepted 2 | . 2 . Recyclers Shooed . | . . . Parts Field Recycled . | . . . Retrieved Matter . | . . . Parts Self-Destructed . | . . . Prevented . | . . . Parts Restored . | . . . Kills | -11 -10 -9 ------- Run | Yrd Mat Mat Combat Hostiles Destroyed 31 | . 15 16 Melee 8 | . . 8 Guns 3 | . 3 . Cannons 11 | . 11 . AOE 3 | . . 3 Classes Destroyed 9 | 2 4 3 Builder 1 | . . 1 Tunneler 2 | 1 1 . Hauler 2 | . 2 . Recycler 2 | 1 1 . Operator 3 | . 2 1 Watcher 4 | . 3 1 Swarmer 8 | . . 8 Grunt 20 | . 15 5 Sentry 3 | . . 3 Best Kill Streak 5 | 1 4 5 Combat Bots Only 5 | . 3 5 Max Kills in Single Turn 3 | 1 1 3 Gunslinging . | . . . Exploded 3 | . . 3 Melee 1 | . . 1 Uniques/NPCs Destroyed . | . . . Combat | -11 -10 -9 -------- Run | Yrd Mat Mat Hostile Shots Fired 169 | . 39 130 Missed 54 | . 7 47 Hits 115 | . 32 83 Projectile 115 | . 32 83 Critical Strikes 4 | . . 4 Damage Taken 1624 | . 656 968 Core 618 | . 217 401 Absorbed by Shields . | . . . Redirected to Shielding 24 | . . 24 Regen/Repaired (Parts) 49 | . . 49 Core Remaining (%) 56 | 100 13 . Volleys Fired 96 | 4 81 11 Largest 2 | 2 2 2 Hottest 120 | 40 120 50 Shots Fired 156 | 8 132 16 Gun 67 | 8 50 9 Cannon 60 | . 55 5 Launcher 2 | . . 2 Special 27 | . 27 . Kinetic 72 | 8 50 14 Thermal 82 | . 82 . Explosive 2 | . . 2 Electromagnetic . | . . . Robot Hit Streak 7 | 5 7 3 Robot Miss Streak 4 | 1 4 3 Penetration Max . | . . . Secondary Targets . | . . . Shots Hit Robots 109 | 7 61 41 Core Hits 48 | 3 31 14 Critical Kills 1 | . 1 . Critical Parts Destroyed 11 | . . 11 Critical Strikes 12 | . 1 11 Meltdown 1 | . 1 . Smash 11 | . . 11 Melee Attacks 72 | . 1 71 Impact 71 | . . 71 Slashing . | . . . Piercing . | . . . Sneak Attacks 2 | . . 2 Combat Hostiles 1 | . . 1 Follow-up Attacks 2 | . . 2 Damage Inflicted 2646 | 78 988 1580 Guns 461 | 78 344 39 Cannons 676 | . 619 57 Explosions 254 | . . 254 Melee 1230 | . . 1230 Ramming 1 | . 1 . Kinetic 518 | 78 344 96 Thermal 643 | . 643 . Explosive 254 | . . 254 Electromagnetic . | . . . Impact 1230 | . . 1230 Slashing . | . . . Piercing . | . . . Highest Corruption 8 | . 8 . Average Corruption 5 | . 5 . Corruption Purged . | . . . Corruption Blocked . | . . . Effects 41 | . 41 . Message Errors 8 | . 8 . Matter Fused 12 | . 12 . Heat Flow Errors 4 | . 4 . Energy Discharges 8 | . 8 . Data Loss (minor) 3 | . 3 . Data Loss (major) 1 | . 1 . Misfires 2 | . 2 . Alerts 1 | . 1 . Weapon Failures 2 | . 2 . Overload Shots . | . . . Overflow Damage 543 | . 8 535 Projectiles 8 | . 8 . Explosions . | . . . Melee 535 | . . 535 Knockbacks 4 | . . 4 Impact 4 | . . 4 Kinetic . | . . . Secondary . | . . . Self-Inflicted Damage 27 | . . 27 Shots 1 | . . 1 Rammed . | . . . Targets Rammed 1 | . 1 . Kicked 1 | . 1 . Crushed . | . . . Highest Temperature 347 | . 347 334 Average Temperature 66 | . 62 132 Received Heat Transfer 510 | . 219 291 Siege Activations . | . . . Martial Activations . | . . . Shielding Activations . | . . . Robots Disrupted . | . . . Combat Hostiles . | . . . Robots Corrupted 6 | . . 6 Combat Hostiles 5 | . . 5 Parts Fried 16 | . . 16 Impact Corruptions 21 | . . 21 Robots Melted 1 | . 1 . Combat Hostiles 1 | . 1 . Parts Melted 3 | . 3 . Heat Transferred 1308 | . 1308 . Parts Sabotaged . | . . . Parts Stolen . | . . . Parts Stripped . | . . . Power Chain Reactions . | . . . Alert | -11 -10 -9 ------- Run | Yrd Mat Mat Maximum Alert Level 2 | . 1 2 Low Security (%) 73 | 100 70 72 Level 1 26 | . 29 24 Level 2 . | . . 2 Level 3 . | . . . Level 4 . | . . . Level 5 . | . . . High Security . | . . . Max Security . | . . . Peak Influence 405 | 5 264 405 Initial 82 | . . 82 Average 115 | . 118 132 Influence Increases 1471 | 10 676 785 Destroy 0b10 Robot/C 620 | . 300 320 Destroy 0b10 Robot/NC 70 | 10 45 15 Destroy Leader 162 | . 80 82 Successful Hack 91 | . 36 55 Disable Machine 30 | . 15 15 Destroy Structure 63 | . 20 43 Partial Spotted 75 | . . 75 Lose Combat Pursuer 360 | . 180 180 Influence Decreases 1067 | 10 480 577 Entered New Map 114 | . . 114 Time Decay 813 | 10 440 363 Lost Part 140 | . 40 100 Squads Dispatched 6 | . 4 2 Investigation 4 | . 3 1 Extermination . | . . . Reinforcement 2 | . 1 1 Assault . | . . . Garrison . | . . . Intercept . | . . . Searches Triggered . | . . . Construction Impeded . | . . . Haulers Reinforced . | . . . Active Scanning Responses . | . . . Cargo Convoy Interrupts . | . . . Stealth | -11 -10 -9 --------- Run | Yrd Mat Mat Distress Signals 4 | . 2 2 Communications Jammed . | . . . Distress Signals . | . . . Times Spotted 74 | . 34 40 Peak Tracking Total 9 | . 4 9 Tactical Retreats 16 | . 6 10 ECM-based Alert Blocks 7 | . . 7 Traps | -11 -10 -9 ------- Run | Yrd Mat Mat Traps Triggered 3 | . 3 . Indirectly . | . . . Trap Hack Attempts . | . . . Triggered . | . . . Disarmed . | . . . Reprogrammed . | . . . Reused . | . . . Traps Extracted . | . . . Installed . | . . . Triggered . | . . . Machines | -11 -10 -9 ---------- Run | Yrd Mat Mat Machines Disabled 2 | . 1 1 Max in Single Turn 1 | . 1 1 Machines Repaired . | . . . Machines Dismantled . | . . . Machines Sabotaged . | . . . Overloaded Fab Kills . | . . . Hacking | -11 -10 -9 --------- Run | Yrd Mat Mat Machines Accessed 19 | . 10 9 Terminals 11 | . 7 4 Fabricators . | . . . Repair Stations 3 | . 1 2 Recycling Units 4 | . 2 2 Scanalyzers 1 | . . 1 Garrison Access . | . . . Total Hacks 62 | . 32 30 Successful 43 | . 20 23 Failed 18 | . 11 7 Catastrophic 2 | . 1 1 Database Lockouts 1 | . 1 . Manual 35 | . 27 8 Terminals 41 | . 27 14 Fabricators . | . . . Repair Stations 8 | . 2 6 Recycling Units 7 | . 3 4 Scanalyzers 6 | . . 6 Garrison Access . | . . . Terminal Hacks 16 | . 10 6 Record 3 | . 2 1 Part Schematic 1 | . 1 . Robot Analysis 6 | . 5 1 Prototype ID Bank 2 | . . 2 Emergency Access Points 1 | . . 1 Terminal Index 1 | . 1 . Alert Level 1 | . . 1 Assault Status 1 | . 1 . Fabricator Hacks . | . . . Repair Station Hacks 5 | . . 5 Scan Component 2 | . . 2 Repair 2 | . . 2 Refit 1 | . . 1 Recycling Unit Hacks 7 | . 3 4 Report Inventory 4 | . 3 1 Retrieve Matter 1 | . . 1 Retrieve Components 2 | . . 2 Scanalyzer 3 | . . 3 Insert Component 1 | . . 1 Retrieve Study 2 | . . 2 Garrison Access Hacks . | . . . Unauthorized Hacks 11 | . 7 4 Terminals 11 | . 7 4 Botnet 11 | . 7 4 Fabricators . | . . . Repair Stations . | . . . Recycling Units . | . . . Scanalyzers . | . . . Garrison Access . | . . . Data Cores Recovered 1 | . 1 . Used . | . . . Hacking Detections 14 | . 8 6 Full Trace Events 7 | . 5 2 Feedback Events . | . . . Feedback Blocked . | . . . Robot Schematics Acquired . | . . . Robots Built . | . . . Authchips . | . . . Time . | . . . Total Robot Build Rating . | . . . Part Schematics Acquired 1 | . 1 . Parts Built . | . . . Authchips . | . . . Time . | . . . Total Part Build Rating . | . . . Part Studies Acquired 2 | . . 2 Parts Repaired 2 | . . 2 Time 58 | . . 58 Parts Recycled . | . . . Recycled Matter . | . . . Retrieved Matter 201 | . . 201 Retrieved Components 11 | . . 11 Parts Scanalyzed 1 | . . 1 Part Schematics Acquired . | . . . Parts Damaged . | . . . Bothacking | -11 -10 -9 ------------ Run | Yrd Mat Mat Used RIF Installer . | . . . Robots Hacked 1 | . 1 . Non-combat . | . . . Combat 1 | . 1 . Robot Hacks Applied 1 | . 1 . parse_system 1 | . 1 . Relay Couplers Released . | . . . Fabnet Peak Effective % . | . . . Robots Rewired . | . . . Allies Hacked . | . . . Hacks Repelled . | . . . Allies | -11 -10 -9 -------- Run | Yrd Mat Mat Total Allies . | . . . Largest Group . | . . . Highest-Rated Group . | . . . Highest-Rated Ally . | . . . Total Orders . | . . . Ally Attacks . | . . . Total Damage . | . . . Kills . | . . . Allies Corrupted . | . . . Allies Melted . | . . . Intel | -11 -10 -9 ------- Run | Yrd Mat Mat Active Infowar (turns) 2537 | 80 1840 617 Sensors 594 | . . 594 Seismic 1943 | 80 1840 23 ECM 362 | . . 362 Robot Analysis Total 5 | . 4 1 Derelict Logs Recovered . | . . . Drone Launches . | . . . Drone Recoveries . | . . . Exploration | -11 -10 -9 ------------- Run | Yrd Mat Mat Turns Passed 2847 | 166 1840 841 Spaces Moved 1843 | 81 960 802 Core 90 | 8 . 82 Treads . | . . . Legs 365 | . 299 66 Wheels 734 | 73 661 . Hover 394 | . . 394 Flight 260 | . . 260 Fastest Speed 29 | 50 90 29 Average Speed 86 | 87 113 52 Slowest Speed 190 | 100 190 190 Overloaded Moves . | . . . Propulsion Burnouts . | . . . Robots Hopped . | . . . Potential Cave-ins 3 | . 3 . Cave-ins Triggered 1 | . 1 . Exploration Rate (%) 47 | 5 95 42 Regions Visited 2 Branch Regions . Pre-discovered Areas . | . . . Known Exits Taken . | . . . Unknown Exits Taken 2 | 1 1 . Scrap Searched . | . . . Spaces Dug 48 | . 22 26 Terrain Destroyed 69 | . 24 45 Melee 26 | . . 26 Projectile 24 | . 24 . AOE 19 | . . 19 Terrain Rammed . | . . . Walls Destroyed . | . . . Machines Disabled . | . . . Actions | -11 -10 -9 --------- Run | Yrd Mat Mat Total 2759 | 167 1524 1068 Wait 581 | 60 415 106 Move 1841 | 80 959 802 Hop . | . . . Pick Up 58 | 14 21 23 Fast Attach 12 | . 2 10 Attach 21 | 7 5 9 Detach 1 | . . 1 Swap 36 | 2 20 14 Drop 42 | . 19 23 Fire 96 | 4 81 11 Melee 70 | . 1 69 Ram . | . . . Kick 1 | . 1 . Crush . | . . . Escape Stasis . | . . . Rewire . | . . . Trap . | . . . Miscellaneous . | . . . Route ------- -11/Scrapyard -10/Materials (discovered 4 exits: *Mat x3 / [*Min]) -9/Materials (discovered 2 exits: [*Mat] / [*Min]) History --------- Turn | Location | Event 8 | -11/Scrapyard | Discovered new exit (range 16) 167 | -11/Scrapyard | Entered Materials 301 | -10/Materials | Build established: Mutant 568 | -10/Materials | Discovered new exit (range 11) 775 | -10/Materials | Discovered new exit (range 13) 991 | -10/Materials | Crushed by falling debris 991 | -10/Materials | Core integrity fell below 50% 1268 | -10/Materials | Discovered new exit (range 4) 1342 | -10/Materials | Central database locked down 1447 | -10/Materials | Core integrity fell below 20% 1587 | -10/Materials | Discovered new exit (range 15) 1677 | -10/Materials | Build established: Scavenger-Mutant 2007 | -10/Materials | Entered another Materials area 2007 | -9/Materials | Evolved 2 slots: Propulsion x1, Utility x1 2251 | -9/Materials | Repaired Maul 2498 | -9/Materials | Repaired Hover Unit+? 2611 | -9/Materials | Core integrity fell below 50% 2634 | -9/Materials | Core integrity fell below 20% 2655 | -9/Materials | Lost 7 parts (2p2n2u1w) 2713 | -9/Materials | Discovered new exit (range 16) 2840 | -9/Materials | Discovered new exit (range 7) 2848 | -9/Materials | Destroyed by S-10 Pest with Light Assault Rifle Last Messages --------------- 02752_ Dropped Datajack+. 02753_ Acquired Flight Unit. 02754_ Acquired Heat Sink. 02756_ Connecting with Recycling Unit... >>Retrieve(Matter) Matter ejected: 201 02811_ U-05 Engineer builds a Wall. 02813_ Sneak attack on U-05 Engineer. 02813_ U-05 Engineer suffers critical hit (Smash). 02813_ Destroyed Welding Torch. 02813_ Destroyed Structural Scanner. 02813_ Destroyed Lgt. Ion Engine. 02813_ U-05 Engineer system corrupted by crushing effect. 02813_ U-05 Engineer knocked back. 02814_ U-05 Engineer system terminally corrupted. 02814_ Terrain Scan Processor fried. 02814_ Terrain Scanner fried. 02817_ K-01 Serf collects debris. 02840_ EXIT=FOUND 02848_ Lgt. Ion Engine destroyed. Map ----- +----------------------------------------------------+ | ???????????????????????????????# #! #####???# # | | ???????????????????????????????# ## ###??????# # | | ???????????????????????????????# ####????????# # | | ???????????????????????????????# #???????????# # | | ???????????????????????????????# #?????????###+# | | ???????????????????????????????# #?????????# | | ???????????????????????????????# #########?# | | ??????????????????????????????## ## #?# | | ??????????????????????????????# # ### """ | | ??????????????????????????????# # ## """ | | ??????????????????????????????# + !! #?# """ | | ??????????????????????????????# # !! #?# | | ??????????????????????????????# # ! #?##### | | ??????????????????????????#######+##"#######?????? | | ??????????????????????????# #????????? | | ??????????????????????????# #????????? | | ??????????????????????????# """ """ """ #????????? | | ??????????????????????????? """ """ """ #????????? | | ??????????????????????????# """ """ """ #????????? | | ??????????????????????????# #????????? | | ??????????????????????????#########+##########???? | | ??????????????????######??????????# # #???? | | ??????????????????? ?#######??# # #???? | | ?????????????????? """"" # #### # """ #???? | | ???????????????# ""T"" # # """"" #???? | | ???????????????# @ + """"" #???? | | ???????????????# ss#s # """"" #???? | | ???????????????# ! # ###### """ #???? | | ???????????????# ?## ##????# #???? | | ???????????????# ??# #?????# #???? | | ???????????????########???# #?????##########???? | | ??????????????????????????# < #??????????????????? | | ??????????????????????????# #??????????????????? | | ??????????????????????????#####??????????????????? | | ?????????????????????????????????????????????????? | | ?????????????????????????????????????????????????? | | ?????????????????????????????????????????????????? | | ?????????????????????????????????????????????????? | | ?????????????????????????????????????????????????? | | ?????????????????????????????????????????????????? | | ?????????????????????????????????????????????????? | | | | | | | | | | | | | | | | | | | +----------------------------------------------------+ Best States ------------- Heat Dissipation 50 Energy Generation 14 Energy Capacity 250 Matter Stores 300 Matter Capacity 300 Sight Range 16 Robot Scan Range 14 Terrain Scan Density 10 ECM Strength 1 Propulsion Shielding 33 Evasion (%) 64 Offensive Hacking 10 Item Schematics ----------------- Med. Storage Unit | -10/Materials | Hacked Robot Schematics ------------------ None Fabricated ------------ Nothing Repaired ---------- Maul | 74% | -9/Materials Hover Unit | 40% | -9/Materials Studied --------- Hover Unit | -9/Materials | Hacked Datajack | -9/Materials | Hacked Alien Tech Used ----------------- None Achievements -------------- None Challenges ------------ None Game ------ Seed AmuletAngularCycler Manual? 0 Play Time 01:23:36 Cumulative 41.0 hours Start 2025.12.02 @ 05:58:11 End 2025.12.02 @ 08:12:51 Sessions 1 Manual Loads 0 Difficulty Rogue Special Mode None Game No. 18 Rogue 18 Adventurer 0 Explorer 0 Win Type - Total 0 Types 0/0/0/0/0/0/0/0/0/0 Lore% 7 Gallery% 24 Achievement% 17 Wizard Run 0 Options --------- Layout 0 ASCII 0 Keyboard 0 Movement Mouse Keybinds 1 Fullscreen 2 Font 24/Smallcaps Map View 76x50 Zoom Use 0% Tactical HUD 1 Map Filters NONE Filters NONE Steam 1 RUN: 3d1488d8-0ed4-438e-a3da-143691ba94dc